[Event "Titled Tuesday Blitz January 04 2022"]
[White "Terry, Renato"]
[Black "Artemenko, Oleg"]
[WhiteFideId "3803457"]
[BlackFideId "14201798"]
[WhiteElo "2577"]
[BlackElo "2287"]
[Result "1-0"]
[Round "02"]
[TimeControl "180+1"]
[Date "2022.01.04"]
[WhiteClock "0:01:22"]
[BlackClock "0:00:02"]

1. d4 {[%clk 0:03:00]}  Nf6 {[%clk 0:02:59]} 2. Bg5 {[%clk 0:03:00]}  e6 {[%clk 0:02:58]} 3. e4 {[%clk 0:03:00]}  d5 {[%clk 0:02:57]} 4. e5 {[%clk 0:03:00]}  h6 {[%clk 0:02:57]} 5. Be3 {[%clk 0:02:57]}  Nfd7 {[%clk 0:02:55]} 6. f4 {[%clk 0:02:55]}  c5 {[%clk 0:02:55]} 7. c3 {[%clk 0:02:55]}  Nc6 {[%clk 0:02:53]} 8. Nf3 {[%clk 0:02:54]}  Qb6 {[%clk 0:02:53]} 9. Qd2 {[%clk 0:02:53]}  Be7 {[%clk 0:02:40]} 10. Bd3 {[%clk 0:02:52]}  Qa5 {[%clk 0:02:26]} 11. O-O {[%clk 0:02:45]}  b6 {[%clk 0:02:26]} 12. f5 {[%clk 0:02:22]}  Ba6 {[%clk 0:02:15]} 13. fxe6 {[%clk 0:02:22]}  fxe6 {[%clk 0:02:16]} 14. Bg6+ {[%clk 0:02:20]}  Kd8 {[%clk 0:02:17]} 15. Rf2 {[%clk 0:02:05]}  Kc7 {[%clk 0:02:11]} 16. Bf7 {[%clk 0:01:56]}  cxd4 {[%clk 0:01:33]} 17. Nxd4 {[%clk 0:01:52]}  Nxd4 {[%clk 0:01:26]} 18. Bxd4 {[%clk 0:01:52]}  Nf8 {[%clk 0:01:11]} 19. b4 {[%clk 0:01:47]}  Qa4 {[%clk 0:01:10]} 20. Qe1 {[%clk 0:01:39]}  Rc8 {[%clk 0:00:49]} 21. Nd2 {[%clk 0:01:33]}  Kb8 {[%clk 0:00:49]} 22. Bh5 {[%clk 0:01:32]}  g6 {[%clk 0:00:46]} 23. Bd1 {[%clk 0:01:32]}  Qe8 {[%clk 0:00:29]} 24. a4 {[%clk 0:01:32]}  Bb7 {[%clk 0:00:27]} 25. a5 {[%clk 0:01:27]}  b5 {[%clk 0:00:24]} 26. a6 {[%clk 0:01:27]}  Ba8 {[%clk 0:00:14]} 27. Nb3 {[%clk 0:01:28]}  Nd7 {[%clk 0:00:13]} 28. Qe3 {[%clk 0:01:25]}  Rc7 {[%clk 0:00:11]} 29. Bg4 {[%clk 0:01:25]}  Bg5 {[%clk 0:00:09]} 30. Qh3 {[%clk 0:01:26]}  Nf8 {[%clk 0:00:06]} 31. Bc5 {[%clk 0:01:24]}  Rxc5 {[%clk 0:00:03]} 32. Nxc5 {[%clk 0:01:24]}  Rh7 {[%clk 0:00:03]} 33. Raf1 {[%clk 0:01:24]}  Nd7 {[%clk 0:00:01]} 34. Bxe6 {[%clk 0:01:23]}  Nxc5 {[%clk 0:00:02]} 35. Rf8 {[%clk 0:01:23]}  Be3+ {[%clk 0:00:02]} 36. Qxe3 {[%clk 0:01:22]} 1-0


[Site "https://www.chess.com"]

[Event "Titled Tuesday Blitz January 04 2022"]
[White "Aghasiyev, Kamal"]
[Black "Tsvetkov, Andrey"]
[WhiteFideId "13402854"]
[BlackFideId "34139360"]
[WhiteElo "2210"]
[BlackElo "2280"]
[Result "1-0"]
[Round "03"]
[TimeControl "180+1"]
[Date "2022.01.04"]
[WhiteClock "0:00:14"]
[BlackClock "0:00:25"]

1. d4 {[%clk 0:03:00]}  d5 {[%clk 0:02:59]} 2. c4 {[%clk 0:02:58]}  e6 {[%clk 0:03:00]} 3. Nc3 {[%clk 0:02:57]}  c6 {[%clk 0:02:59]} 4. Nf3 {[%clk 0:02:48]}  Nf6 {[%clk 0:02:59]} 5. e3 {[%clk 0:02:47]}  Nbd7 {[%clk 0:02:59]} 6. Bd3 {[%clk 0:02:45]}  dxc4 {[%clk 0:02:59]} 7. Bxc4 {[%clk 0:02:45]}  b5 {[%clk 0:03:00]} 8. Bd3 {[%clk 0:02:44]}  a6 {[%clk 0:03:01]} 9. O-O {[%clk 0:02:32]}  c5 {[%clk 0:03:01]} 10. a4 {[%clk 0:02:30]}  b4 {[%clk 0:03:00]} 11. Ne4 {[%clk 0:02:26]}  Bb7 {[%clk 0:03:01]} 12. Ng3 {[%clk 0:02:24]}  cxd4 {[%clk 0:02:56]} 13. exd4 {[%clk 0:02:23]}  Be7 {[%clk 0:02:50]} 14. Bf4 {[%clk 0:02:19]}  O-O {[%clk 0:02:48]} 15. a5 {[%clk 0:02:16]}  Nd5 {[%clk 0:02:46]} 16. Bd2 {[%clk 0:02:14]}  Rc8 {[%clk 0:02:44]} 17. Qe2 {[%clk 0:02:14]}  Nb8 {[%clk 0:02:25]} 18. Ne5 {[%clk 0:02:09]}  Nc6 {[%clk 0:02:16]} 19. Nxc6 {[%clk 0:02:00]}  Rxc6 {[%clk 0:02:17]} 20. Ne4 {[%clk 0:01:39]}  Nf6 {[%clk 0:02:10]} 21. Nc5 {[%clk 0:01:31]}  Bxc5 {[%clk 0:01:54]} 22. dxc5 {[%clk 0:01:31]}  Qd5 {[%clk 0:01:48]} 23. f3 {[%clk 0:01:24]}  Rd8 {[%clk 0:01:46]} 24. Rad1 {[%clk 0:00:59]}  Qxc5+ {[%clk 0:01:34]} 25. Be3 {[%clk 0:00:57]}  Qe7 {[%clk 0:01:34]} 26. Bb6 {[%clk 0:00:54]}  Rdc8 {[%clk 0:01:30]} 27. Bxa6 {[%clk 0:00:53]}  Nd5 {[%clk 0:01:23]} 28. Bxb7 {[%clk 0:00:37]}  Qxb7 {[%clk 0:01:24]} 29. Bd4 {[%clk 0:00:33]}  f6 {[%clk 0:01:06]} 30. f4 {[%clk 0:00:29]}  Kh8 {[%clk 0:01:03]} 31. b3 {[%clk 0:00:24]}  Rc2 {[%clk 0:01:03]} 32. Qf3 {[%clk 0:00:21]}  Ra2 {[%clk 0:00:58]} 33. Bb6 {[%clk 0:00:19]}  Rcc2 {[%clk 0:00:57]} 34. Rf2 {[%clk 0:00:18]}  Rxf2 {[%clk 0:00:56]} 35. Bxf2 {[%clk 0:00:18]}  Rxa5 {[%clk 0:00:56]} 36. f5 {[%clk 0:00:19]}  exf5 {[%clk 0:00:38]} 37. Qxf5 {[%clk 0:00:17]}  h6 {[%clk 0:00:38]} 38. Qg6 {[%clk 0:00:13]}  Qc6 {[%clk 0:00:29]} 39. Re1 {[%clk 0:00:11]}  Ra8 {[%clk 0:00:29]} 40. h3 {[%clk 0:00:04]}  Nf4 {[%clk 0:00:28]} 41. Qg4 {[%clk 0:00:04]}  Nd5 {[%clk 0:00:27]} 42. Qg6 {[%clk 0:00:03]}  Rd8 {[%clk 0:00:24]} 43. Kh2 {[%clk 0:00:02]}  Qd6+ {[%clk 0:00:23]} 44. Bg3 {[%clk 0:00:02]}  Qd7 {[%clk 0:00:23]} 45. Rd1 {[%clk 0:00:02]}  Qe6 {[%clk 0:00:21]} 46. Rd4 {[%clk 0:00:03]}  Rd7 {[%clk 0:00:18]} 47. Re4 {[%clk 0:00:03]}  Ne7 {[%clk 0:00:10]} 48. Qe8+ {[%clk 0:00:02]}  Qg8 {[%clk 0:00:11]} 49. Qxd7 {[%clk 0:00:02]}  Nf5 {[%clk 0:00:12]} 50. Re8 {[%clk 0:00:02]}  Nxg3 {[%clk 0:00:09]} 51. Rxg8+ {[%clk 0:00:02]}  Kxg8 {[%clk 0:00:10]} 52. Kxg3 {[%clk 0:00:03]}  Kh7 {[%clk 0:00:11]} 53. Qd5 {[%clk 0:00:03]}  h5 {[%clk 0:00:12]} 54. Qc4 {[%clk 0:00:04]}  h4+ {[%clk 0:00:13]} 55. Kf2 {[%clk 0:00:04]}  g5 {[%clk 0:00:14]} 56. Qxb4 {[%clk 0:00:05]}  Kg6 {[%clk 0:00:14]} 57. Qc4 {[%clk 0:00:06]}  Kh5 {[%clk 0:00:15]} 58. b4 {[%clk 0:00:07]}  g4 {[%clk 0:00:16]} 59. b5 {[%clk 0:00:08]}  g3+ {[%clk 0:00:17]} 60. Kf3 {[%clk 0:00:08]}  Kg5 {[%clk 0:00:18]} 61. Qf4+ {[%clk 0:00:09]}  Kh5 {[%clk 0:00:18]} 62. Qg4+ {[%clk 0:00:09]}  Kh6 {[%clk 0:00:18]} 63. Qxh4+ {[%clk 0:00:10]}  Kg6 {[%clk 0:00:19]} 64. Qxg3+ {[%clk 0:00:11]}  Kf7 {[%clk 0:00:20]} 65. Qf4 {[%clk 0:00:11]}  Ke6 {[%clk 0:00:21]} 66. h4 {[%clk 0:00:12]}  Kd5 {[%clk 0:00:22]} 67. h5 {[%clk 0:00:12]}  Kc5 {[%clk 0:00:22]} 68. h6 {[%clk 0:00:13]}  Kb6 {[%clk 0:00:23]} 69. Qxf6+ {[%clk 0:00:13]}  Ka5 {[%clk 0:00:24]} 70. h7 {[%clk 0:00:14]}  Kb4 {[%clk 0:00:24]} 71. h8=Q {[%clk 0:00:15]}  Kb3 {[%clk 0:00:25]} 72. Qb2+ {[%clk 0:00:14]}  Kc4 {[%clk 0:00:25]} 73. Qhd4# {[%clk 0:00:14]} 1-0


[Site "https://www.chess.com"]

[Event "Titled Tuesday Blitz January 04 2022"]
[White "Andreikin, Dmitry"]
[Black "Shimelkov, Vasiliy"]
[WhiteFideId "4158814"]
[BlackFideId "13701630"]
[WhiteElo "2736"]
[BlackElo "2073"]
[Result "1-0"]
[Round "03"]
[TimeControl "180+1"]
[Date "2022.01.04"]
[WhiteClock "0:01:09"]
[BlackClock "0:00:21"]

1. d4 {[%clk 0:03:00]}  d5 {[%clk 0:02:59]} 2. c4 {[%clk 0:03:00]}  e6 {[%clk 0:03:00]} 3. Nc3 {[%clk 0:02:59]}  Nf6 {[%clk 0:02:59]} 4. cxd5 {[%clk 0:02:59]}  exd5 {[%clk 0:02:59]} 5. Bg5 {[%clk 0:02:58]}  Be7 {[%clk 0:02:59]} 6. e3 {[%clk 0:02:57]}  h6 {[%clk 0:02:59]} 7. Bh4 {[%clk 0:02:57]}  O-O {[%clk 0:02:59]} 8. Bd3 {[%clk 0:02:57]}  c6 {[%clk 0:02:56]} 9. Nge2 {[%clk 0:02:56]}  Ne4 {[%clk 0:02:54]} 10. Bxe7 {[%clk 0:02:53]}  Qxe7 {[%clk 0:02:53]} 11. Bxe4 {[%clk 0:02:53]}  dxe4 {[%clk 0:02:53]} 12. Ng3 {[%clk 0:02:45]}  f5 {[%clk 0:02:49]} 13. O-O {[%clk 0:02:43]}  Be6 {[%clk 0:02:46]} 14. d5 {[%clk 0:02:25]}  Rd8 {[%clk 0:02:37]} 15. Qh5 {[%clk 0:02:19]}  cxd5 {[%clk 0:02:27]} 16. Nxf5 {[%clk 0:02:19]}  Qf7 {[%clk 0:02:21]} 17. Qxf7+ {[%clk 0:02:16]}  Kxf7 {[%clk 0:02:21]} 18. Nd4 {[%clk 0:02:15]}  Nd7 {[%clk 0:02:15]} 19. Rac1 {[%clk 0:02:10]}  Ne5 {[%clk 0:02:09]} 20. Ncb5 {[%clk 0:02:08]}  Nd3 {[%clk 0:02:05]} 21. Nc7 {[%clk 0:01:46]}  Nxc1 {[%clk 0:01:32]} 22. Rxc1 {[%clk 0:01:47]}  Rac8 {[%clk 0:01:13]} 23. Ndxe6 {[%clk 0:01:47]}  Rd7 {[%clk 0:01:09]} 24. h4 {[%clk 0:01:37]}  Re7 {[%clk 0:01:03]} 25. Rc5 {[%clk 0:01:35]}  b6 {[%clk 0:00:56]} 26. Rxd5 {[%clk 0:01:27]}  Rcxc7 {[%clk 0:00:52]} 27. Nxc7 {[%clk 0:01:26]}  Rxc7 {[%clk 0:00:52]} 28. Rd2 {[%clk 0:01:19]}  Rc1+ {[%clk 0:00:45]} 29. Kh2 {[%clk 0:01:19]}  Kf6 {[%clk 0:00:37]} 30. Kg3 {[%clk 0:01:19]}  Ke5 {[%clk 0:00:37]} 31. Rd7 {[%clk 0:01:18]}  Rc2 {[%clk 0:00:36]} 32. Rxg7 {[%clk 0:01:17]}  a5 {[%clk 0:00:31]} 33. Rg6 {[%clk 0:01:15]}  Rxb2 {[%clk 0:00:31]} 34. Rxh6 {[%clk 0:01:15]}  b5 {[%clk 0:00:32]} 35. a4 {[%clk 0:01:08]}  bxa4 {[%clk 0:00:27]} 36. Rh5+ {[%clk 0:01:08]}  Kd6 {[%clk 0:00:25]} 37. Rxa5 {[%clk 0:01:09]}  Rb4 {[%clk 0:00:21]} 38. h5 {[%clk 0:01:09]} 1-0


[Site "https://www.chess.com"]

[Event "Titled Tuesday Blitz January 04 2022"]
[White "Azadaliyev, Jahandar"]
[Black "Pliukha, Myhajlo"]
[WhiteFideId "13425811"]
[BlackFideId "14164698"]
[WhiteElo "1795"]
[BlackElo "2229"]
[Result "1-0"]
[Round "03"]
[TimeControl "180+1"]
[Date "2022.01.04"]
[WhiteClock "0:00:40"]
[BlackClock "0:00:03"]

1. d4 {[%clk 0:03:00]}  Nf6 {[%clk 0:02:59]} 2. c4 {[%clk 0:03:00]}  e6 {[%clk 0:03:00]} 3. Nf3 {[%clk 0:03:01]}  d5 {[%clk 0:03:00]} 4. g3 {[%clk 0:03:01]}  dxc4 {[%clk 0:03:00]} 5. Bg2 {[%clk 0:03:01]}  Be7 {[%clk 0:03:01]} 6. O-O {[%clk 0:03:01]}  O-O {[%clk 0:03:01]} 7. Qc2 {[%clk 0:03:02]}  a6 {[%clk 0:03:02]} 8. a4 {[%clk 0:03:02]}  Bd7 {[%clk 0:03:01]} 9. Nbd2 {[%clk 0:03:01]}  Bc6 {[%clk 0:03:00]} 10. Nxc4 {[%clk 0:03:00]}  Nbd7 {[%clk 0:03:01]} 11. Rd1 {[%clk 0:03:01]}  Rc8 {[%clk 0:03:00]} 12. Nfe5 {[%clk 0:03:01]}  Bxg2 {[%clk 0:03:00]} 13. Kxg2 {[%clk 0:03:00]}  c5 {[%clk 0:03:00]} 14. Nxd7 {[%clk 0:02:56]}  Qxd7 {[%clk 0:02:57]} 15. dxc5 {[%clk 0:02:40]}  Qc6+ {[%clk 0:02:57]} 16. f3 {[%clk 0:02:41]}  Qxc5 {[%clk 0:02:57]} 17. b3 {[%clk 0:02:41]}  b5 {[%clk 0:02:55]} 18. axb5 {[%clk 0:02:40]}  axb5 {[%clk 0:02:55]} 19. Ba3 {[%clk 0:02:38]}  Qc7 {[%clk 0:02:52]} 20. Ne3 {[%clk 0:02:21]}  Qxc2 {[%clk 0:02:31]} 21. Nxc2 {[%clk 0:02:22]}  Rxc2 {[%clk 0:02:30]} 22. Bxe7 {[%clk 0:02:22]}  Rfc8 {[%clk 0:02:21]} 23. Kf2 {[%clk 0:02:08]}  Nd5 {[%clk 0:02:21]} 24. Bg5 {[%clk 0:02:05]}  h6 {[%clk 0:02:21]} 25. Bd2 {[%clk 0:02:04]}  Nc3 {[%clk 0:02:12]} 26. Bxc3 {[%clk 0:01:54]}  R8xc3 {[%clk 0:02:13]} 27. Rab1 {[%clk 0:01:42]}  Ra2 {[%clk 0:02:08]} 28. Rd4 {[%clk 0:01:38]}  Rcc2 {[%clk 0:02:07]} 29. Re4 {[%clk 0:01:38]}  Rab2 {[%clk 0:02:04]} 30. Rxb2 {[%clk 0:01:37]}  Rxb2 {[%clk 0:02:05]} 31. Rb4 {[%clk 0:01:38]}  f5 {[%clk 0:01:58]} 32. Rxb5 {[%clk 0:01:37]}  Kf7 {[%clk 0:01:59]} 33. Rb7+ {[%clk 0:01:37]}  Kf6 {[%clk 0:01:59]} 34. f4 {[%clk 0:01:37]}  g5 {[%clk 0:01:59]} 35. Kf3 {[%clk 0:01:38]}  g4+ {[%clk 0:01:59]} 36. Ke3 {[%clk 0:01:37]}  h5 {[%clk 0:01:56]} 37. b4 {[%clk 0:01:36]}  Kg6 {[%clk 0:01:56]} 38. b5 {[%clk 0:01:35]}  Kf6 {[%clk 0:01:56]} 39. b6 {[%clk 0:01:34]}  Kg6 {[%clk 0:01:57]} 40. Rb8 {[%clk 0:01:34]}  Kf6 {[%clk 0:01:57]} 41. b7 {[%clk 0:01:33]}  Kg7 {[%clk 0:01:55]} 42. Kd4 {[%clk 0:01:32]}  h4 {[%clk 0:01:10]} 43. gxh4 {[%clk 0:01:19]}  Rb5 {[%clk 0:01:01]} 44. h5 {[%clk 0:01:13]}  Kh7 {[%clk 0:00:59]} 45. h6 {[%clk 0:01:09]}  Rb2 {[%clk 0:00:54]} 46. e3 {[%clk 0:01:00]}  Rb5 {[%clk 0:00:21]} 47. Kc4 {[%clk 0:00:57]}  Rb1 {[%clk 0:00:21]} 48. Kc5 {[%clk 0:00:57]}  Rb2 {[%clk 0:00:20]} 49. Kd6 {[%clk 0:00:56]}  Rb3 {[%clk 0:00:16]} 50. Ke7 {[%clk 0:00:54]}  Rb6 {[%clk 0:00:08]} 51. Kf6 {[%clk 0:00:53]}  Rb3 {[%clk 0:00:06]} 52. Kxe6 {[%clk 0:00:38]}  Rb5 {[%clk 0:00:06]} 53. Kf6 {[%clk 0:00:38]}  Rb6+ {[%clk 0:00:02]} 54. Kxf5 {[%clk 0:00:38]}  Rxb7 {[%clk 0:00:02]} 55. Rxb7+ {[%clk 0:00:38]}  Kxh6 {[%clk 0:00:02]} 56. e4 {[%clk 0:00:38]}  g3 {[%clk 0:00:02]} 57. hxg3 {[%clk 0:00:39]}  Kh5 {[%clk 0:00:03]} 58. Rh7# {[%clk 0:00:40]} 1-0


[Site "https://www.chess.com"]

[Event "Titled Tuesday Blitz January 04 2022"]
[White "Babazada, Khazar"]
[Black "Rozen, Eytan"]
[WhiteFideId "13413554"]
[BlackFideId "2816750"]
[WhiteElo "2418"]
[BlackElo "2115"]
[Result "1-0"]
[Round "03"]
[TimeControl "180+1"]
[Date "2022.01.04"]
[WhiteClock "0:00:42"]
[BlackClock "0:00:03"]

1. e4 {[%clk 0:03:00]}  e5 {[%clk 0:02:54]} 2. Nf3 {[%clk 0:03:00]}  Nc6 {[%clk 0:02:55]} 3. Bb5 {[%clk 0:03:00]}  Nf6 {[%clk 0:02:55]} 4. O-O {[%clk 0:02:59]}  d6 {[%clk 0:02:50]} 5. Nc3 {[%clk 0:02:50]}  Bd7 {[%clk 0:02:49]} 6. h3 {[%clk 0:02:49]}  a6 {[%clk 0:02:40]} 7. Ba4 {[%clk 0:02:45]}  Be7 {[%clk 0:02:27]} 8. d3 {[%clk 0:02:41]}  O-O {[%clk 0:02:27]} 9. a3 {[%clk 0:02:40]}  Nd4 {[%clk 0:02:10]} 10. Bxd7 {[%clk 0:02:38]}  Nxf3+ {[%clk 0:02:07]} 11. Qxf3 {[%clk 0:02:37]}  Qxd7 {[%clk 0:02:08]} 12. Be3 {[%clk 0:02:34]}  c6 {[%clk 0:02:07]} 13. Rad1 {[%clk 0:02:33]}  d5 {[%clk 0:02:00]} 14. exd5 {[%clk 0:02:22]}  cxd5 {[%clk 0:01:51]} 15. Bg5 {[%clk 0:02:21]}  d4 {[%clk 0:01:38]} 16. Ne2 {[%clk 0:02:15]}  Rac8 {[%clk 0:01:33]} 17. c4 {[%clk 0:02:14]}  dxc3 {[%clk 0:01:30]} 18. Nxc3 {[%clk 0:02:14]}  Nd5 {[%clk 0:01:13]} 19. Bxe7 {[%clk 0:02:06]}  Nxe7 {[%clk 0:01:11]} 20. Rfe1 {[%clk 0:02:05]}  Nc6 {[%clk 0:01:07]} 21. Qg3 {[%clk 0:01:59]}  Rfd8 {[%clk 0:01:01]} 22. Ne4 {[%clk 0:01:58]}  Qf5 {[%clk 0:00:38]} 23. Rc1 {[%clk 0:01:58]}  h6 {[%clk 0:00:32]} 24. Rc3 {[%clk 0:01:53]}  Rd4 {[%clk 0:00:31]} 25. Nc5 {[%clk 0:01:49]}  b5 {[%clk 0:00:24]} 26. Nxa6 {[%clk 0:01:45]}  e4 {[%clk 0:00:21]} 27. dxe4 {[%clk 0:01:36]}  Rxe4 {[%clk 0:00:22]} 28. Rxe4 {[%clk 0:01:36]}  Qxe4 {[%clk 0:00:22]} 29. Nb4 {[%clk 0:01:37]}  Kh7 {[%clk 0:00:16]} 30. Kh2 {[%clk 0:01:29]}  Ne7 {[%clk 0:00:14]} 31. Re3 {[%clk 0:01:28]}  Qb7 {[%clk 0:00:14]} 32. Qf4 {[%clk 0:00:59]}  Ng6 {[%clk 0:00:13]} 33. Qf5 {[%clk 0:00:59]}  Qc7+ {[%clk 0:00:12]} 34. g3 {[%clk 0:00:57]}  Rd8 {[%clk 0:00:13]} 35. Nd5 {[%clk 0:00:54]}  Qc1 {[%clk 0:00:13]} 36. Rd3 {[%clk 0:00:52]}  Rd6 {[%clk 0:00:08]} 37. Qxf7 {[%clk 0:00:48]}  Qxb2 {[%clk 0:00:08]} 38. Ne7 {[%clk 0:00:42]}  Nxe7 {[%clk 0:00:03]} 39. Rxd6 {[%clk 0:00:42]} 1-0


[Site "https://www.chess.com"]

[Event "Titled Tuesday Blitz January 04 2022"]
[White "Belyakov, Bogdan"]
[Black "Deac, Bogdan-Daniel"]
[WhiteFideId "24104795"]
[BlackFideId "1226380"]
[WhiteElo "2407"]
[BlackElo "2646"]
[Result "0-1"]
[Round "03"]
[TimeControl "180+1"]
[Date "2022.01.04"]
[WhiteClock "0:00:35"]
[BlackClock "0:00:28"]

1. e4 {[%clk 0:03:00]}  c5 {[%clk 0:02:50]} 2. c3 {[%clk 0:02:59]}  Qa5 {[%clk 0:02:43]} 3. a3 {[%clk 0:02:51]}  Nf6 {[%clk 0:02:35]} 4. e5 {[%clk 0:02:49]}  Nd5 {[%clk 0:02:25]} 5. d4 {[%clk 0:02:45]}  cxd4 {[%clk 0:02:22]} 6. b4 {[%clk 0:02:44]}  Qc7 {[%clk 0:02:22]} 7. cxd4 {[%clk 0:02:43]}  d6 {[%clk 0:02:22]} 8. Nf3 {[%clk 0:02:41]}  Bg4 {[%clk 0:02:11]} 9. Be2 {[%clk 0:02:36]}  e6 {[%clk 0:02:07]} 10. O-O {[%clk 0:02:34]}  Nd7 {[%clk 0:02:03]} 11. Ra2 {[%clk 0:02:25]}  Rc8 {[%clk 0:01:49]} 12. exd6 {[%clk 0:02:12]}  Bxd6 {[%clk 0:01:47]} 13. h3 {[%clk 0:02:10]}  Bf5 {[%clk 0:01:42]} 14. Bd2 {[%clk 0:02:09]}  O-O {[%clk 0:01:29]} 15. Ra1 {[%clk 0:01:53]}  Qc2 {[%clk 0:01:22]} 16. Qxc2 {[%clk 0:01:46]}  Rxc2 {[%clk 0:01:23]} 17. Bd1 {[%clk 0:01:45]}  Rb2 {[%clk 0:01:20]} 18. Nc3 {[%clk 0:01:29]}  Rxd2 {[%clk 0:01:18]} 19. Nxd5 {[%clk 0:01:19]}  Rxd1 {[%clk 0:01:17]} 20. Rfxd1 {[%clk 0:01:16]}  exd5 {[%clk 0:01:17]} 21. Rac1 {[%clk 0:01:16]}  Nb6 {[%clk 0:01:11]} 22. Ne5 {[%clk 0:01:08]}  f6 {[%clk 0:01:10]} 23. Nd3 {[%clk 0:01:09]}  Nc4 {[%clk 0:01:09]} 24. Nc5 {[%clk 0:01:09]}  b6 {[%clk 0:01:05]} 25. Nd3 {[%clk 0:01:03]}  Nxa3 {[%clk 0:01:01]} 26. Ra1 {[%clk 0:01:02]}  Nb5 {[%clk 0:00:56]} 27. g4 {[%clk 0:00:53]}  Bxd3 {[%clk 0:00:52]} 28. Rxd3 {[%clk 0:00:53]}  Bxb4 {[%clk 0:00:52]} 29. Rc1 {[%clk 0:00:45]}  a5 {[%clk 0:00:42]} 30. Rc6 {[%clk 0:00:44]}  Rb8 {[%clk 0:00:42]} 31. Re3 {[%clk 0:00:39]}  a4 {[%clk 0:00:35]} 32. Ree6 {[%clk 0:00:34]}  a3 {[%clk 0:00:29]} 33. Rxb6 {[%clk 0:00:34]}  Rxb6 {[%clk 0:00:29]} 34. Rxb6 {[%clk 0:00:35]}  a2 {[%clk 0:00:28]} 35. Ra6 {[%clk 0:00:35]}  Na3 {[%clk 0:00:28]} 0-1


[Site "https://www.chess.com"]

[Event "Titled Tuesday Blitz January 04 2022"]
[White "Christiansen, Johan-Sebastian"]
[Black "Guseinov, Gadir"]
[WhiteFideId "1512668"]
[BlackFideId "13401378"]
[WhiteElo "2513"]
[BlackElo "2581"]
[Result "1-0"]
[Round "03"]
[TimeControl "180+1"]
[Date "2022.01.04"]
[WhiteClock "0:00:05"]
[BlackClock "0:00:02"]

1. e4 {[%clk 0:03:00]}  c5 {[%clk 0:02:59]} 2. Nf3 {[%clk 0:02:58]}  g6 {[%clk 0:02:59]} 3. c3 {[%clk 0:02:54]}  d5 {[%clk 0:02:59]} 4. exd5 {[%clk 0:02:53]}  Qxd5 {[%clk 0:03:00]} 5. d4 {[%clk 0:02:53]}  Bg7 {[%clk 0:02:57]} 6. Nbd2 {[%clk 0:02:51]}  cxd4 {[%clk 0:02:56]} 7. Bc4 {[%clk 0:02:48]}  Qh5 {[%clk 0:02:40]} 8. Qb3 {[%clk 0:02:46]}  Nh6 {[%clk 0:02:40]} 9. Nxd4 {[%clk 0:02:39]}  O-O {[%clk 0:02:36]} 10. O-O {[%clk 0:02:39]}  Nd7 {[%clk 0:02:19]} 11. N2f3 {[%clk 0:02:37]}  Ne5 {[%clk 0:02:12]} 12. Bd5 {[%clk 0:02:24]}  Nf5 {[%clk 0:01:57]} 13. Nxe5 {[%clk 0:02:11]}  Bxe5 {[%clk 0:01:55]} 14. Nf3 {[%clk 0:02:11]}  Bd6 {[%clk 0:01:46]} 15. h3 {[%clk 0:02:05]}  Nh4 {[%clk 0:01:46]} 16. Nxh4 {[%clk 0:01:31]}  Qxh4 {[%clk 0:01:46]} 17. Re1 {[%clk 0:01:31]}  a5 {[%clk 0:01:24]} 18. a4 {[%clk 0:01:27]}  Rb8 {[%clk 0:01:10]} 19. Be3 {[%clk 0:01:10]}  b6 {[%clk 0:01:08]} 20. Rad1 {[%clk 0:01:03]}  Ba6 {[%clk 0:01:04]} 21. Rd4 {[%clk 0:01:02]}  Qf6 {[%clk 0:01:02]} 22. Re4 {[%clk 0:00:42]}  b5 {[%clk 0:00:51]} 23. Bd4 {[%clk 0:00:38]}  Qg5 {[%clk 0:00:51]} 24. Rg4 {[%clk 0:00:33]}  Qf5 {[%clk 0:00:38]} 25. Be4 {[%clk 0:00:29]}  Qh5 {[%clk 0:00:29]} 26. Qa2 {[%clk 0:00:16]}  bxa4 {[%clk 0:00:28]} 27. Be3 {[%clk 0:00:10]}  Qb5 {[%clk 0:00:23]} 28. Bxg6 {[%clk 0:00:10]}  hxg6 {[%clk 0:00:20]} 29. Rxg6+ {[%clk 0:00:11]}  Kh7 {[%clk 0:00:20]} 30. Rh6+ {[%clk 0:00:11]}  Kg7 {[%clk 0:00:21]} 31. Qb1 {[%clk 0:00:07]}  Qd3 {[%clk 0:00:20]} 32. Qc1 {[%clk 0:00:07]}  Rh8 {[%clk 0:00:16]} 33. Bd4+ {[%clk 0:00:07]}  f6 {[%clk 0:00:04]} 34. Qg5+ {[%clk 0:00:04]}  Kf7 {[%clk 0:00:03]} 35. Rxf6+ {[%clk 0:00:05]}  Ke8 {[%clk 0:00:02]} 36. Rxd6 {[%clk 0:00:05]} 1-0


[Site "https://www.chess.com"]

[Event "Titled Tuesday Blitz January 04 2022"]
[White "Daggupati, Balaji"]
[Black "Costachi, Mihnea"]
[WhiteFideId "2090759"]
[BlackFideId "1217518"]
[WhiteElo "2660"]
[BlackElo "2464"]
[Result "1-0"]
[Round "03"]
[TimeControl "180+1"]
[Date "2022.01.04"]
[WhiteClock "0:00:19"]
[BlackClock "0:00:03"]

1. e4 {[%clk 0:03:00]}  c5 {[%clk 0:02:58]} 2. Nf3 {[%clk 0:03:00]}  d6 {[%clk 0:02:57]} 3. d4 {[%clk 0:03:00]}  cxd4 {[%clk 0:02:57]} 4. Nxd4 {[%clk 0:03:01]}  Nf6 {[%clk 0:02:58]} 5. Nc3 {[%clk 0:03:02]}  Nc6 {[%clk 0:02:58]} 6. Bg5 {[%clk 0:03:01]}  e6 {[%clk 0:02:58]} 7. Qd2 {[%clk 0:03:00]}  Be7 {[%clk 0:02:58]} 8. O-O-O {[%clk 0:03:00]}  Bd7 {[%clk 0:02:59]} 9. f4 {[%clk 0:03:00]}  a6 {[%clk 0:02:59]} 10. Kb1 {[%clk 0:02:57]}  b5 {[%clk 0:02:58]} 11. a3 {[%clk 0:02:46]}  b4 {[%clk 0:02:45]} 12. axb4 {[%clk 0:02:46]}  Nxb4 {[%clk 0:02:44]} 13. e5 {[%clk 0:02:43]}  dxe5 {[%clk 0:02:37]} 14. fxe5 {[%clk 0:02:44]}  Nfd5 {[%clk 0:02:37]} 15. Nxd5 {[%clk 0:02:33]}  Nxd5 {[%clk 0:02:31]} 16. Bxe7 {[%clk 0:02:34]}  Qxe7 {[%clk 0:02:32]} 17. Nf5 {[%clk 0:02:34]}  exf5 {[%clk 0:02:30]} 18. Qxd5 {[%clk 0:02:34]}  O-O {[%clk 0:02:28]} 19. Qxd7 {[%clk 0:02:30]}  Qxe5 {[%clk 0:02:24]} 20. Bc4 {[%clk 0:02:26]}  g6 {[%clk 0:02:21]} 21. Rhe1 {[%clk 0:02:20]}  Qc5 {[%clk 0:02:00]} 22. Qd5 {[%clk 0:02:19]}  Qc7 {[%clk 0:01:56]} 23. Bb3 {[%clk 0:02:11]}  Rad8 {[%clk 0:01:51]} 24. Qc4 {[%clk 0:02:06]}  Rxd1+ {[%clk 0:01:48]} 25. Rxd1 {[%clk 0:02:05]}  Qxh2 {[%clk 0:01:32]} 26. Rd8 {[%clk 0:01:58]}  Qg1+ {[%clk 0:01:02]} 27. Ka2 {[%clk 0:01:57]}  Qa7 {[%clk 0:01:02]} 28. Rd6 {[%clk 0:01:58]}  a5 {[%clk 0:00:55]} 29. Ra6 {[%clk 0:01:53]}  Qb7 {[%clk 0:00:55]} 30. Rxa5 {[%clk 0:01:53]}  h5 {[%clk 0:00:52]} 31. g3 {[%clk 0:01:51]}  Qb8 {[%clk 0:00:45]} 32. Qc3 {[%clk 0:01:33]}  Qd6 {[%clk 0:00:39]} 33. Ra7 {[%clk 0:01:28]}  f4 {[%clk 0:00:37]} 34. gxf4 {[%clk 0:01:25]}  Qxf4 {[%clk 0:00:38]} 35. Qc6 {[%clk 0:01:14]}  Qf5 {[%clk 0:00:34]} 36. Qc4 {[%clk 0:01:09]}  Qf6 {[%clk 0:00:31]} 37. Ra6 {[%clk 0:01:05]}  Qg5 {[%clk 0:00:24]} 38. Qe4 {[%clk 0:00:55]}  Kg7 {[%clk 0:00:22]} 39. Qd4+ {[%clk 0:00:51]}  Kh7 {[%clk 0:00:23]} 40. c4 {[%clk 0:00:49]}  h4 {[%clk 0:00:22]} 41. Qd6 {[%clk 0:00:35]}  Re8 {[%clk 0:00:18]} 42. Ra7 {[%clk 0:00:35]}  h3 {[%clk 0:00:06]} 43. Rxf7+ {[%clk 0:00:34]}  Kh6 {[%clk 0:00:06]} 44. Rf3 {[%clk 0:00:31]}  Ra8+ {[%clk 0:00:05]} 45. Kb1 {[%clk 0:00:29]}  Qg1+ {[%clk 0:00:06]} 46. Bd1 {[%clk 0:00:22]}  h2 {[%clk 0:00:04]} 47. Rh3+ {[%clk 0:00:22]}  Kg7 {[%clk 0:00:04]} 48. Rxh2 {[%clk 0:00:20]}  Re8 {[%clk 0:00:02]} 49. Rd2 {[%clk 0:00:19]}  Re1 {[%clk 0:00:02]} 50. Qd4+ {[%clk 0:00:19]}  Kh6 {[%clk 0:00:02]} 51. Qxg1 {[%clk 0:00:19]}  Rxg1 {[%clk 0:00:03]} 52. c5 {[%clk 0:00:20]}  Rg2 {[%clk 0:00:03]} 53. Rxg2 {[%clk 0:00:19]} 1-0


[Site "https://www.chess.com"]